[Event "Titled Tuesday Blitz October 31 Early 2023"]
[White "Srebrnic, Marko"]
[Black "Sailer, Mike"]
[WhiteFideId "14603616"]
[BlackFideId "2012901"]
[WhiteElo "2408"]
[BlackElo "2051"]
[Result "1-0"]
[Round "4"]
[TimeControl "180+1"]
[Date "2023.10.31"]
[WhiteClock "0:00:16"]
[BlackClock "0:00:00"]
[Board "157"]

1. e4 {[%clk 0:03:00]}  g6 {[%clk 0:02:59]} 2. d4 {[%clk 0:02:59]}  Bg7 {[%clk 0:02:59]} 3. Nc3 {[%clk 0:02:59]}  c5 {[%clk 0:03:00]} 4. Be3 {[%clk 0:02:59]}  Qa5 {[%clk 0:02:51]} 5. Ne2 {[%clk 0:02:58]}  d6 {[%clk 0:02:32]} 6. dxc5 {[%clk 0:02:54]}  dxc5 {[%clk 0:02:32]} 7. Qd2 {[%clk 0:02:45]}  Nf6 {[%clk 0:02:29]} 8. f3 {[%clk 0:02:33]}  O-O {[%clk 0:02:27]} 9. O-O-O {[%clk 0:02:26]}  Nc6 {[%clk 0:02:24]} 10. Kb1 {[%clk 0:02:17]}  Be6 {[%clk 0:02:23]} 11. Nd5 {[%clk 0:02:10]}  Qxd2 {[%clk 0:01:47]} 12. Rxd2 {[%clk 0:02:00]}  Rfd8 {[%clk 0:01:22]} 13. Nef4 {[%clk 0:01:36]}  Bxd5 {[%clk 0:01:07]} 14. Nxd5 {[%clk 0:01:34]}  b6 {[%clk 0:00:55]} 15. Bb5 {[%clk 0:01:30]}  Nxd5 {[%clk 0:00:45]} 16. exd5 {[%clk 0:01:27]}  Ne5 {[%clk 0:00:39]} 17. Rhd1 {[%clk 0:01:23]}  a6 {[%clk 0:00:35]} 18. Be2 {[%clk 0:01:22]}  c4 {[%clk 0:00:33]} 19. Bxb6 {[%clk 0:01:02]}  Rdb8 {[%clk 0:00:33]} 20. Bd4 {[%clk 0:01:01]}  Rc8 {[%clk 0:00:21]} 21. c3 {[%clk 0:00:58]}  a5 {[%clk 0:00:17]} 22. f4 {[%clk 0:00:57]}  Nd7 {[%clk 0:00:17]} 23. Bg4 {[%clk 0:00:53]}  f5 {[%clk 0:00:16]} 24. Bf3 {[%clk 0:00:53]}  Rab8 {[%clk 0:00:15]} 25. Re1 {[%clk 0:00:52]}  Bxd4 {[%clk 0:00:12]} 26. Rxd4 {[%clk 0:00:51]}  Kf7 {[%clk 0:00:13]} 27. Re2 {[%clk 0:00:46]}  Rb6 {[%clk 0:00:05]} 28. g4 {[%clk 0:00:40]}  fxg4 {[%clk 0:00:04]} 29. Bxg4 {[%clk 0:00:40]}  Rc7 {[%clk 0:00:03]} 30. Be6+ {[%clk 0:00:34]}  Kf6 {[%clk 0:00:04]} 31. Bg4 {[%clk 0:00:23]}  a4 {[%clk 0:00:04]} 32. a3 {[%clk 0:00:21]}  Rcb7 {[%clk 0:00:04]} 33. Bxd7 {[%clk 0:00:20]}  Rxd7 {[%clk 0:00:04]} 34. Re5 {[%clk 0:00:20]}  Rdb7 {[%clk 0:00:03]} 35. Rd2 {[%clk 0:00:20]}  Rb3 {[%clk 0:00:03]} 36. Kc1 {[%clk 0:00:20]}  R3b5 {[%clk 0:00:02]} 37. Kd1 {[%clk 0:00:21]}  Rd7 {[%clk 0:00:02]} 38. Ke2 {[%clk 0:00:21]}  Rd6 {[%clk 0:00:02]} 39. Ke3 {[%clk 0:00:21]}  h6 {[%clk 0:00:03]} 40. Ke4 {[%clk 0:00:21]}  g5 {[%clk 0:00:03]} 41. Kd4 {[%clk 0:00:22]}  gxf4 {[%clk 0:00:02]} 42. Re6+ {[%clk 0:00:22]}  Kf7 {[%clk 0:00:03]} 43. Rxd6 {[%clk 0:00:22]}  exd6 {[%clk 0:00:03]} 44. Kxc4 {[%clk 0:00:23]}  Rb8 {[%clk 0:00:02]} 45. Rf2 {[%clk 0:00:23]}  Kf6 {[%clk 0:00:01]} 46. Rxf4+ {[%clk 0:00:23]}  Ke5 {[%clk 0:00:02]} 47. Rh4 {[%clk 0:00:21]}  Rxb2 {[%clk 0:00:02]} 48. Rxh6 {[%clk 0:00:21]}  Rb3 {[%clk 0:00:03]} 49. Re6+ {[%clk 0:00:20]}  Kf5 {[%clk 0:00:04]} 50. Rxd6 {[%clk 0:00:20]}  Rxa3 {[%clk 0:00:04]} 51. h4 {[%clk 0:00:21]}  Ra1 {[%clk 0:00:04]} 52. h5 {[%clk 0:00:21]}  Rh1 {[%clk 0:00:02]} 53. Ra6 {[%clk 0:00:20]}  Rxh5 {[%clk 0:00:02]} 54. Rxa4 {[%clk 0:00:19]}  Rh4+ {[%clk 0:00:01]} 55. Kb5 {[%clk 0:00:19]}  Rh3 {[%clk 0:00:01]} 56. c4 {[%clk 0:00:19]}  Ke5 {[%clk 0:00:02]} 57. Kc5 {[%clk 0:00:17]}  Rh1 {[%clk 0:00:01]} 58. Ra6 {[%clk 0:00:16]}  Rb1 {[%clk 0:00:01]} 59. Re6+ {[%clk 0:00:16]}  Kf5 {[%clk 0:00:01]} 60. Re2 {[%clk 0:00:16]}  Rc1 {[%clk 0:00:00]} 61. d6 {[%clk 0:00:16]} 1-0


[Site "https://www.chess.com"]

[Event "Titled Tuesday Blitz October 31 Early 2023"]
[White "Mirza, Diana"]
[Black "Kukreja Sankalp"]
[WhiteFideId "2503999"]
[BlackFideId "45027676"]
[WhiteElo "1955"]
[BlackElo "2401"]
[Result "0-1"]
[Round "4"]
[TimeControl "180+1"]
[Date "2023.10.31"]
[WhiteClock "0:00:01"]
[BlackClock "0:00:16"]
[Board "158"]

1. d4 {[%clk 0:03:00]}  d5 {[%clk 0:02:56]} 2. Nf3 {[%clk 0:03:01]}  Nf6 {[%clk 0:02:56]} 3. e3 {[%clk 0:03:01]}  Bf5 {[%clk 0:02:56]} 4. Bd3 {[%clk 0:03:02]}  Bxd3 {[%clk 0:02:55]} 5. Qxd3 {[%clk 0:03:02]}  c6 {[%clk 0:02:54]} 6. O-O {[%clk 0:03:02]}  e6 {[%clk 0:02:55]} 7. c3 {[%clk 0:03:01]}  Bd6 {[%clk 0:02:55]} 8. Nbd2 {[%clk 0:02:59]}  O-O {[%clk 0:02:54]} 9. e4 {[%clk 0:03:00]}  dxe4 {[%clk 0:02:55]} 10. Nxe4 {[%clk 0:03:01]}  Nxe4 {[%clk 0:02:55]} 11. Qxe4 {[%clk 0:03:01]}  Nd7 {[%clk 0:02:56]} 12. Qg4 {[%clk 0:03:01]}  e5 {[%clk 0:02:50]} 13. Bh6 {[%clk 0:02:45]}  Qf6 {[%clk 0:02:50]} 14. Bg5 {[%clk 0:02:39]}  Qg6 {[%clk 0:02:33]} 15. Nh4 {[%clk 0:02:34]}  Qe6 {[%clk 0:02:21]} 16. Nf5 {[%clk 0:02:23]}  Rfe8 {[%clk 0:02:12]} 17. Bh6 {[%clk 0:02:14]}  g6 {[%clk 0:02:08]} 18. Ne3 {[%clk 0:01:51]}  f5 {[%clk 0:02:03]} 19. Qh3 {[%clk 0:01:40]}  e4 {[%clk 0:01:58]} 20. c4 {[%clk 0:01:27]}  Nf6 {[%clk 0:01:52]} 21. Rad1 {[%clk 0:01:19]}  f4 {[%clk 0:01:31]} 22. Qxe6+ {[%clk 0:01:13]}  Rxe6 {[%clk 0:01:32]} 23. d5 {[%clk 0:01:09]}  Re7 {[%clk 0:01:18]} 24. Nc2 {[%clk 0:01:01]}  cxd5 {[%clk 0:01:04]} 25. Bg5 {[%clk 0:00:50]}  Kg7 {[%clk 0:00:54]} 26. cxd5 {[%clk 0:00:40]}  h6 {[%clk 0:00:42]} 27. Bxf6+ {[%clk 0:00:39]}  Kxf6 {[%clk 0:00:43]} 28. Rfe1 {[%clk 0:00:36]}  Re5 {[%clk 0:00:42]} 29. a3 {[%clk 0:00:33]}  Rd8 {[%clk 0:00:30]} 30. h4 {[%clk 0:00:26]}  Bc5 {[%clk 0:00:18]} 31. Nb4 {[%clk 0:00:14]}  Kf5 {[%clk 0:00:15]} 32. Kf1 {[%clk 0:00:04]}  Bxb4 {[%clk 0:00:16]} 33. axb4 {[%clk 0:00:04]}  Rexd5 {[%clk 0:00:17]} 34. f3 {[%clk 0:00:02]}  Rxd1 {[%clk 0:00:16]} 35. Rxd1 {[%clk 0:00:01]}  Rxd1+ {[%clk 0:00:16]} 0-1


[Site "https://www.chess.com"]

[Event "Titled Tuesday Blitz October 31 Early 2023"]
[White "IsaqueGoncalvesSanto"]
[Black "Hoffmann, Asa"]
[BlackFideId "2001470"]
[WhiteElo "1803"]
[BlackElo "2398"]
[Result "0-1"]
[Round "4"]
[TimeControl "180+1"]
[Date "2023.10.31"]
[WhiteClock "0:01:19"]
[BlackClock "0:02:25"]
[Board "159"]

1. d4 {[%clk 0:03:00]}  Nf6 {[%clk 0:02:58]} 2. c4 {[%clk 0:03:00]}  c5 {[%clk 0:02:57]} 3. d5 {[%clk 0:02:59]}  e5 {[%clk 0:02:54]} 4. Nc3 {[%clk 0:02:58]}  d6 {[%clk 0:02:54]} 5. e4 {[%clk 0:02:55]}  Be7 {[%clk 0:02:54]} 6. f3 {[%clk 0:02:50]}  Nbd7 {[%clk 0:02:53]} 7. Be3 {[%clk 0:02:49]}  Nf8 {[%clk 0:02:53]} 8. Qd2 {[%clk 0:02:46]}  Ng6 {[%clk 0:02:52]} 9. h4 {[%clk 0:02:41]}  Nh5 {[%clk 0:02:51]} 10. g4 {[%clk 0:02:32]}  Bxh4+ {[%clk 0:02:44]} 11. Rxh4 {[%clk 0:02:24]}  Qxh4+ {[%clk 0:02:34]} 12. Bf2 {[%clk 0:02:24]}  Ng3 {[%clk 0:02:29]} 13. Nge2 {[%clk 0:02:20]}  Nxf1 {[%clk 0:02:28]} 14. Bxh4 {[%clk 0:02:07]}  Nxd2 {[%clk 0:02:27]} 15. Kxd2 {[%clk 0:02:07]}  Nxh4 {[%clk 0:02:27]} 16. Ke3 {[%clk 0:01:58]}  Ng6 {[%clk 0:02:26]} 17. Ng3 {[%clk 0:01:56]}  a6 {[%clk 0:02:26]} 18. Nf5 {[%clk 0:01:55]}  Bxf5 {[%clk 0:02:25]} 19. gxf5 {[%clk 0:01:19]}  Nf4 {[%clk 0:02:25]} 0-1


[Site "https://www.chess.com"]

[Event "Titled Tuesday Blitz October 31 Early 2023"]
[White "Xie, Bryan"]
[Black "Skiadopoulos, Nikolaos"]
[WhiteFideId "30941296"]
[BlackFideId "4200772"]
[WhiteElo "2398"]
[BlackElo "1796"]
[Result "1-0"]
[Round "4"]
[TimeControl "180+1"]
[Date "2023.10.31"]
[WhiteClock "0:00:49"]
[BlackClock "0:00:00"]
[Board "160"]

1. e4 {[%clk 0:02:57]}  c5 {[%clk 0:02:59]} 2. Nf3 {[%clk 0:02:58]}  Nc6 {[%clk 0:02:59]} 3. d4 {[%clk 0:02:59]}  cxd4 {[%clk 0:02:58]} 4. Nxd4 {[%clk 0:03:00]}  e5 {[%clk 0:02:58]} 5. Nb5 {[%clk 0:02:59]}  d6 {[%clk 0:02:57]} 6. N1c3 {[%clk 0:03:00]}  a6 {[%clk 0:02:57]} 7. Na3 {[%clk 0:02:59]}  b5 {[%clk 0:02:57]} 8. Nd5 {[%clk 0:02:57]}  Nce7 {[%clk 0:02:56]} 9. Be3 {[%clk 0:02:44]}  Nxd5 {[%clk 0:02:47]} 10. Qxd5 {[%clk 0:02:45]}  Be6 {[%clk 0:02:47]} 11. Qd2 {[%clk 0:02:29]}  Nf6 {[%clk 0:02:41]} 12. f3 {[%clk 0:02:29]}  d5 {[%clk 0:02:38]} 13. exd5 {[%clk 0:02:27]}  Qxd5 {[%clk 0:02:34]} 14. Bd3 {[%clk 0:02:27]}  Bxa3 {[%clk 0:02:19]} 15. bxa3 {[%clk 0:02:20]}  O-O {[%clk 0:02:18]} 16. O-O {[%clk 0:02:17]}  e4 {[%clk 0:01:55]} 17. fxe4 {[%clk 0:02:15]}  Nxe4 {[%clk 0:01:55]} 18. Qe2 {[%clk 0:01:59]}  f5 {[%clk 0:01:44]} 19. Qf3 {[%clk 0:01:37]}  Rad8 {[%clk 0:01:40]} 20. Rae1 {[%clk 0:01:31]}  Qxa2 {[%clk 0:01:21]} 21. Bxe4 {[%clk 0:01:18]}  fxe4 {[%clk 0:01:19]} 22. Qxe4 {[%clk 0:01:19]}  Qd5 {[%clk 0:00:58]} 23. Qb4 {[%clk 0:01:10]}  Rxf1+ {[%clk 0:00:44]} 24. Rxf1 {[%clk 0:01:08]}  h6 {[%clk 0:00:35]} 25. Qe7 {[%clk 0:01:03]}  Qd6 {[%clk 0:00:27]} 26. Rf8+ {[%clk 0:00:51]}  Rxf8 {[%clk 0:00:02]} 27. Qxd6 {[%clk 0:00:50]}  Bc4 {[%clk 0:00:00]} 28. h4 {[%clk 0:00:49]} 1-0


[Site "https://www.chess.com"]

[Event "Titled Tuesday Blitz October 31 Early 2023"]
[White "Buscar, Michael"]
[Black "Kuchava, Ana"]
[WhiteFideId "2603616"]
[BlackFideId "13605348"]
[WhiteElo "2332"]
[BlackElo "2237"]
[Result "1-0"]
[Round "4"]
[TimeControl "180+1"]
[Date "2023.10.31"]
[WhiteClock "0:00:15"]
[BlackClock "0:00:02"]
[Board "163"]

1. e4 {[%clk 0:03:00]}  c5 {[%clk 0:02:59]} 2. Nf3 {[%clk 0:02:49]}  d6 {[%clk 0:02:59]} 3. Bb5+ {[%clk 0:02:45]}  Bd7 {[%clk 0:02:56]} 4. a4 {[%clk 0:02:43]}  a6 {[%clk 0:02:51]} 5. Bd3 {[%clk 0:02:42]}  Nc6 {[%clk 0:02:37]} 6. c3 {[%clk 0:02:39]}  Nf6 {[%clk 0:02:36]} 7. O-O {[%clk 0:02:37]}  g6 {[%clk 0:02:36]} 8. Re1 {[%clk 0:02:38]}  Bg7 {[%clk 0:02:32]} 9. Na3 {[%clk 0:02:38]}  O-O {[%clk 0:02:30]} 10. Nc4 {[%clk 0:02:37]}  Qc7 {[%clk 0:02:22]} 11. a5 {[%clk 0:02:36]}  e6 {[%clk 0:02:11]} 12. Nb6 {[%clk 0:02:14]}  Rad8 {[%clk 0:02:03]} 13. Nxd7 {[%clk 0:02:14]}  Nxd7 {[%clk 0:02:01]} 14. Qa4 {[%clk 0:02:13]}  d5 {[%clk 0:01:49]} 15. exd5 {[%clk 0:02:09]}  exd5 {[%clk 0:01:50]} 16. Bf1 {[%clk 0:02:09]}  Rfe8 {[%clk 0:01:44]} 17. Rxe8+ {[%clk 0:02:08]}  Rxe8 {[%clk 0:01:45]} 18. d3 {[%clk 0:02:02]}  Nde5 {[%clk 0:01:06]} 19. Nxe5 {[%clk 0:01:42]}  Qxe5 {[%clk 0:01:00]} 20. Bf4 {[%clk 0:01:32]}  Qf5 {[%clk 0:00:56]} 21. g3 {[%clk 0:01:26]}  d4 {[%clk 0:00:50]} 22. Bg2 {[%clk 0:01:13]}  dxc3 {[%clk 0:00:18]} 23. bxc3 {[%clk 0:00:55]}  Qxd3 {[%clk 0:00:17]} 24. Bxc6 {[%clk 0:00:52]}  bxc6 {[%clk 0:00:18]} 25. Qxc6 {[%clk 0:00:52]}  Rd8 {[%clk 0:00:12]} 26. Qxc5 {[%clk 0:00:47]}  Qxc3 {[%clk 0:00:11]} 27. Qxc3 {[%clk 0:00:34]}  Bxc3 {[%clk 0:00:12]} 28. Ra3 {[%clk 0:00:31]}  Bb4 {[%clk 0:00:10]} 29. Ra4 {[%clk 0:00:30]}  Bc3 {[%clk 0:00:09]} 30. Kg2 {[%clk 0:00:30]}  Rd5 {[%clk 0:00:08]} 31. Rc4 {[%clk 0:00:30]}  Bxa5 {[%clk 0:00:07]} 32. Rc6 {[%clk 0:00:22]}  Bc3 {[%clk 0:00:06]} 33. Rxc3 {[%clk 0:00:20]}  Kg7 {[%clk 0:00:04]} 34. Rc6 {[%clk 0:00:16]}  a5 {[%clk 0:00:03]} 35. Ra6 {[%clk 0:00:16]}  Rb5 {[%clk 0:00:02]} 36. Bc7 {[%clk 0:00:15]}  h5 {[%clk 0:00:01]} 37. Rxa5 {[%clk 0:00:15]}  Rb7 {[%clk 0:00:01]} 38. Be5+ {[%clk 0:00:15]}  Kh7 {[%clk 0:00:02]} 39. Ra8 {[%clk 0:00:15]}  Rd7 {[%clk 0:00:02]} 40. Rh8# {[%clk 0:00:15]} 1-0


[Site "https://www.chess.com"]

[Event "Titled Tuesday Blitz October 31 Early 2023"]
[White "Castillo Pena, Patricia Evarista"]
[Black "Wu, Derek"]
[WhiteFideId "6412106"]
[BlackFideId "30914558"]
[WhiteElo "2058"]
[BlackElo "2670"]
[Result "0-1"]
[Round "4"]
[TimeControl "180+1"]
[Date "2023.10.31"]
[WhiteClock "0:01:22"]
[BlackClock "0:02:07"]
[Board "166"]

1. d4 {[%clk 0:03:00]}  g6 {[%clk 0:03:00]} 2. Nf3 {[%clk 0:02:59]}  Bg7 {[%clk 0:03:00]} 3. e4 {[%clk 0:02:59]}  d6 {[%clk 0:02:59]} 4. Nc3 {[%clk 0:02:58]}  a6 {[%clk 0:02:57]} 5. Be3 {[%clk 0:02:58]}  b5 {[%clk 0:02:57]} 6. a3 {[%clk 0:02:57]}  Nd7 {[%clk 0:02:56]} 7. Be2 {[%clk 0:02:55]}  Bb7 {[%clk 0:02:53]} 8. Qd2 {[%clk 0:02:53]}  Ngf6 {[%clk 0:02:52]} 9. Bd3 {[%clk 0:02:44]}  e6 {[%clk 0:02:51]} 10. O-O {[%clk 0:02:43]}  Qe7 {[%clk 0:02:46]} 11. h3 {[%clk 0:02:42]}  c5 {[%clk 0:02:45]} 12. e5 {[%clk 0:02:33]}  dxe5 {[%clk 0:02:40]} 13. dxe5 {[%clk 0:02:32]}  Nd5 {[%clk 0:02:32]} 14. Nxd5 {[%clk 0:02:29]}  Bxd5 {[%clk 0:02:33]} 15. Be2 {[%clk 0:02:16]}  Nxe5 {[%clk 0:02:29]} 16. Nxe5 {[%clk 0:02:14]}  Bxe5 {[%clk 0:02:29]} 17. Bg5 {[%clk 0:02:10]}  Qb7 {[%clk 0:02:25]} 18. f3 {[%clk 0:01:53]}  Bxb2 {[%clk 0:02:24]} 19. Rab1 {[%clk 0:01:51]}  Bd4+ {[%clk 0:02:24]} 20. Kh2 {[%clk 0:01:50]}  O-O {[%clk 0:02:20]} 21. Bh6 {[%clk 0:01:46]}  Rfd8 {[%clk 0:02:18]} 22. Qg5 {[%clk 0:01:42]}  Qc7+ {[%clk 0:02:13]} 23. Kh1 {[%clk 0:01:38]}  Qe5 {[%clk 0:02:09]} 24. Qg4 {[%clk 0:01:22]}  Qxe2 {[%clk 0:02:07]} 0-1


[Site "https://www.chess.com"]

[Event "Titled Tuesday Blitz October 31 Early 2023"]
[White "Bulmaga, Irina"]
[Black "Quirke, Jeffrey"]
[WhiteFideId "13903063"]
[BlackFideId "2013029"]
[WhiteElo "2579"]
[BlackElo "2215"]
[Result "1-0"]
[Round "4"]
[TimeControl "180+1"]
[Date "2023.10.31"]
[WhiteClock "0:01:49"]
[BlackClock "0:00:15"]
[Board "167"]

1. e4 {[%clk 0:02:56]}  e6 {[%clk 0:02:58]} 2. d3 {[%clk 0:02:55]}  d5 {[%clk 0:02:58]} 3. Qe2 {[%clk 0:02:54]}  Be7 {[%clk 0:02:49]} 4. Nf3 {[%clk 0:02:52]}  Nf6 {[%clk 0:02:49]} 5. e5 {[%clk 0:02:53]}  Nfd7 {[%clk 0:02:48]} 6. g3 {[%clk 0:02:53]}  b6 {[%clk 0:02:48]} 7. Bg2 {[%clk 0:02:54]}  Bb7 {[%clk 0:02:49]} 8. O-O {[%clk 0:02:54]}  c5 {[%clk 0:02:49]} 9. c3 {[%clk 0:02:55]}  Nc6 {[%clk 0:02:50]} 10. d4 {[%clk 0:02:55]}  Qc7 {[%clk 0:02:49]} 11. h4 {[%clk 0:02:54]}  h6 {[%clk 0:02:49]} 12. Bf4 {[%clk 0:02:51]}  O-O-O {[%clk 0:02:46]} 13. Na3 {[%clk 0:02:52]}  Rdg8 {[%clk 0:02:33]} 14. Qd2 {[%clk 0:02:45]}  a6 {[%clk 0:02:30]} 15. Rac1 {[%clk 0:02:44]}  c4 {[%clk 0:02:27]} 16. Nc2 {[%clk 0:02:40]}  Qd8 {[%clk 0:02:22]} 17. h5 {[%clk 0:02:36]}  g5 {[%clk 0:01:47]} 18. hxg6 {[%clk 0:02:27]}  Rxg6 {[%clk 0:01:47]} 19. b3 {[%clk 0:02:20]}  b5 {[%clk 0:01:40]} 20. bxc4 {[%clk 0:02:20]}  bxc4 {[%clk 0:01:39]} 21. Rb1 {[%clk 0:02:20]}  h5 {[%clk 0:01:28]} 22. Ne3 {[%clk 0:02:18]}  h4 {[%clk 0:01:12]} 23. Qb2 {[%clk 0:02:03]}  Na5 {[%clk 0:01:11]} 24. Nh2 {[%clk 0:01:52]}  hxg3 {[%clk 0:01:07]} 25. fxg3 {[%clk 0:01:51]}  Rh7 {[%clk 0:00:15]} 26. Nxc4 {[%clk 0:01:49]} 1-0


[Site "https://www.chess.com"]

[Event "Titled Tuesday Blitz October 31 Early 2023"]
[White "Pinales Roussel, Gabriel"]
[Black "Kiremitciyan, Ari"]
[WhiteFideId "3101762"]
[BlackFideId "6373445"]
[WhiteElo "2182"]
[BlackElo "2552"]
[Result "0-1"]
[Round "4"]
[TimeControl "180+1"]
[Date "2023.10.31"]
[WhiteClock "0:00:11"]
[BlackClock "0:00:41"]
[Board "169"]

1. d4 {[%clk 0:03:00]}  g6 {[%clk 0:02:59]} 2. e4 {[%clk 0:02:58]}  Bg7 {[%clk 0:02:59]} 3. Nc3 {[%clk 0:02:58]}  d6 {[%clk 0:02:59]} 4. h3 {[%clk 0:02:58]}  Nd7 {[%clk 0:02:57]} 5. Nf3 {[%clk 0:02:58]}  e5 {[%clk 0:02:58]} 6. Be2 {[%clk 0:02:58]}  Ngf6 {[%clk 0:02:56]} 7. O-O {[%clk 0:02:57]}  c6 {[%clk 0:02:56]} 8. Be3 {[%clk 0:02:56]}  O-O {[%clk 0:02:56]} 9. Qd2 {[%clk 0:02:56]}  Qe7 {[%clk 0:02:57]} 10. dxe5 {[%clk 0:02:41]}  dxe5 {[%clk 0:02:58]} 11. Bh6 {[%clk 0:02:41]}  Nc5 {[%clk 0:02:56]} 12. Bxg7 {[%clk 0:02:39]}  Kxg7 {[%clk 0:02:57]} 13. Qe3 {[%clk 0:02:37]}  Nh5 {[%clk 0:02:37]} 14. Nxe5 {[%clk 0:01:33]}  Qxe5 {[%clk 0:02:33]} 15. f4 {[%clk 0:01:34]}  Qe7 {[%clk 0:02:30]} 16. Bxh5 {[%clk 0:01:34]}  gxh5 {[%clk 0:02:31]} 17. f5 {[%clk 0:01:35]}  Kh8 {[%clk 0:02:13]} 18. f6 {[%clk 0:01:32]}  Qe5 {[%clk 0:02:10]} 19. Rf4 {[%clk 0:01:14]}  Ne6 {[%clk 0:02:04]} 20. Rf5 {[%clk 0:01:13]}  Qd4 {[%clk 0:02:04]} 21. Qxd4 {[%clk 0:01:11]}  Nxd4 {[%clk 0:02:05]} 22. Rxh5 {[%clk 0:01:11]}  Be6 {[%clk 0:01:57]} 23. Rf1 {[%clk 0:01:11]}  Rg8 {[%clk 0:01:38]} 24. Rf4 {[%clk 0:01:09]}  Rg6 {[%clk 0:01:38]} 25. Rfh4 {[%clk 0:01:00]}  h6 {[%clk 0:01:39]} 26. Rxh6+ {[%clk 0:00:57]}  Rxh6 {[%clk 0:01:40]} 27. Rxh6+ {[%clk 0:00:57]}  Kg8 {[%clk 0:01:40]} 28. e5 {[%clk 0:00:55]}  Bf5 {[%clk 0:01:34]} 29. Rh4 {[%clk 0:00:47]}  Nxc2 {[%clk 0:01:30]} 30. Rf4 {[%clk 0:00:46]}  Bg6 {[%clk 0:01:30]} 31. e6 {[%clk 0:00:24]}  fxe6 {[%clk 0:01:27]} 32. g4 {[%clk 0:00:24]}  Kf7 {[%clk 0:01:22]} 33. h4 {[%clk 0:00:24]}  e5 {[%clk 0:01:11]} 34. Rf2 {[%clk 0:00:20]}  Nd4 {[%clk 0:01:05]} 35. h5 {[%clk 0:00:20]}  Bh7 {[%clk 0:01:02]} 36. g5 {[%clk 0:00:20]}  Rg8 {[%clk 0:01:02]} 37. g6+ {[%clk 0:00:17]}  Bxg6 {[%clk 0:01:03]} 38. hxg6+ {[%clk 0:00:18]}  Rxg6+ {[%clk 0:01:04]} 39. Kh2 {[%clk 0:00:18]}  Rxf6 {[%clk 0:01:01]} 40. Rg2 {[%clk 0:00:16]}  Rf4 {[%clk 0:00:44]} 41. Kg3 {[%clk 0:00:12]}  Nf5+ {[%clk 0:00:43]} 42. Kh3 {[%clk 0:00:11]}  Rh4# {[%clk 0:00:41]} 0-1


[Site "https://www.chess.com"]

[Event "Titled Tuesday Blitz October 31 Early 2023"]
[White "Horcajuelo Rocamora, Martin"]
[Black "Floresvillar Gonzalez, Luis Migu"]
[WhiteFideId "24573027"]
[BlackFideId "5100542"]
[WhiteElo "2471"]
[BlackElo "2174"]
[Result "1-0"]
[Round "4"]
[TimeControl "180+1"]
[Date "2023.10.31"]
[WhiteClock "0:02:16"]
[BlackClock "0:01:23"]
[Board "171"]

1. g3 {[%clk 0:02:53]}  d5 {[%clk 0:02:58]} 2. Bg2 {[%clk 0:02:53]}  c6 {[%clk 0:02:56]} 3. Nf3 {[%clk 0:02:52]}  Bg4 {[%clk 0:02:57]} 4. O-O {[%clk 0:02:51]}  h5 {[%clk 0:02:56]} 5. h4 {[%clk 0:02:50]}  Nd7 {[%clk 0:02:56]} 6. c4 {[%clk 0:02:50]}  e6 {[%clk 0:02:55]} 7. d4 {[%clk 0:02:50]}  Ngf6 {[%clk 0:02:54]} 8. Bg5 {[%clk 0:02:49]}  Be7 {[%clk 0:02:51]} 9. Nbd2 {[%clk 0:02:49]}  Bxf3 {[%clk 0:02:46]} 10. Bxf3 {[%clk 0:02:49]}  Ng4 {[%clk 0:02:44]} 11. Bxe7 {[%clk 0:02:49]}  Qxe7 {[%clk 0:02:44]} 12. e4 {[%clk 0:02:49]}  dxe4 {[%clk 0:02:41]} 13. Nxe4 {[%clk 0:02:34]}  Ndf6 {[%clk 0:02:35]} 14. Ng5 {[%clk 0:02:33]}  O-O-O {[%clk 0:02:30]} 15. Re1 {[%clk 0:02:32]}  Rd7 {[%clk 0:02:08]} 16. d5 {[%clk 0:02:21]}  cxd5 {[%clk 0:02:06]} 17. cxd5 {[%clk 0:02:21]}  Rhd8 {[%clk 0:02:03]} 18. Qc2+ {[%clk 0:02:15]}  Rc7 {[%clk 0:01:59]} 19. Qa4 {[%clk 0:02:15]}  Kb8 {[%clk 0:01:57]} 20. dxe6 {[%clk 0:02:15]}  fxe6 {[%clk 0:01:52]} 21. Nxe6 {[%clk 0:02:16]}  Re8 {[%clk 0:01:42]} 22. Nxc7 {[%clk 0:02:14]}  Qxe1+ {[%clk 0:01:41]} 23. Rxe1 {[%clk 0:02:15]}  Rxe1+ {[%clk 0:01:41]} 24. Kg2 {[%clk 0:02:15]}  Kxc7 {[%clk 0:01:23]} 25. Qa5+ {[%clk 0:02:16]} 1-0


[Site "https://www.chess.com"]

[Event "Titled Tuesday Blitz October 31 Early 2023"]
[White "Ferrufino, Boris"]
[Black "Shuvalov, Evgenij"]
[WhiteFideId "3300170"]
[BlackFideId "4187237"]
[WhiteElo "2169"]
[BlackElo "2457"]
[Result "0-1"]
[Round "4"]
[TimeControl "180+1"]
[Date "2023.10.31"]
[WhiteClock "0:00:41"]
[BlackClock "0:00:30"]
[Board "172"]

1. e4 {[%clk 0:02:54]}  e6 {[%clk 0:02:59]} 2. d4 {[%clk 0:02:54]}  d5 {[%clk 0:02:59]} 3. Nd2 {[%clk 0:02:54]}  c5 {[%clk 0:02:59]} 4. exd5 {[%clk 0:02:54]}  exd5 {[%clk 0:02:59]} 5. Ngf3 {[%clk 0:02:55]}  Nc6 {[%clk 0:02:59]} 6. Bb5 {[%clk 0:02:54]}  Qe7+ {[%clk 0:02:58]} 7. Be2 {[%clk 0:02:51]}  Qc7 {[%clk 0:02:56]} 8. O-O {[%clk 0:02:50]}  Nf6 {[%clk 0:02:55]} 9. c4 {[%clk 0:02:46]}  cxd4 {[%clk 0:02:45]} 10. cxd5 {[%clk 0:02:46]}  Nxd5 {[%clk 0:02:44]} 11. Nb3 {[%clk 0:02:42]}  Be7 {[%clk 0:02:40]} 12. Bd2 {[%clk 0:02:37]}  O-O {[%clk 0:02:37]} 13. Rc1 {[%clk 0:02:37]}  Qb6 {[%clk 0:02:30]} 14. Bc4 {[%clk 0:02:37]}  Be6 {[%clk 0:02:27]} 15. Ng5 {[%clk 0:02:35]}  Bxg5 {[%clk 0:02:27]} 16. Bxg5 {[%clk 0:02:35]}  h6 {[%clk 0:02:21]} 17. Bd2 {[%clk 0:02:33]}  Rad8 {[%clk 0:02:18]} 18. Qf3 {[%clk 0:02:33]}  Rfe8 {[%clk 0:02:13]} 19. Qg3 {[%clk 0:02:11]}  Kf8 {[%clk 0:02:06]} 20. Qh4 {[%clk 0:02:03]}  Kg8 {[%clk 0:01:33]} 21. Qg3 {[%clk 0:02:02]}  Kh7 {[%clk 0:01:29]} 22. Bd3+ {[%clk 0:01:57]}  Kh8 {[%clk 0:01:28]} 23. Qh4 {[%clk 0:01:53]}  Kg8 {[%clk 0:01:11]} 24. Bxh6 {[%clk 0:01:50]}  gxh6 {[%clk 0:01:12]} 25. Qxh6 {[%clk 0:01:49]}  f5 {[%clk 0:00:59]} 26. Nc5 {[%clk 0:01:28]}  Bc8 {[%clk 0:00:55]} 27. Qg6+ {[%clk 0:01:16]}  Kf8 {[%clk 0:00:54]} 28. Bxf5 {[%clk 0:01:13]}  Qc7 {[%clk 0:00:50]} 29. Ne6+ {[%clk 0:01:05]}  Bxe6 {[%clk 0:00:50]} 30. Bxe6 {[%clk 0:01:06]}  Qg7 {[%clk 0:00:47]} 31. Qf5+ {[%clk 0:01:02]}  Nf6 {[%clk 0:00:45]} 32. Qc5+ {[%clk 0:00:56]}  Qe7 {[%clk 0:00:42]} 33. Qg5 {[%clk 0:00:51]}  Qxe6 {[%clk 0:00:41]} 34. Qh6+ {[%clk 0:00:51]}  Kg8 {[%clk 0:00:41]} 35. Rc5 {[%clk 0:00:51]}  Rd5 {[%clk 0:00:36]} 36. Qg6+ {[%clk 0:00:50]}  Kf8 {[%clk 0:00:36]} 37. Qh6+ {[%clk 0:00:49]}  Ke7 {[%clk 0:00:36]} 38. Rc2 {[%clk 0:00:48]}  Rg8 {[%clk 0:00:33]} 39. Rcc1 {[%clk 0:00:41]}  Re5 {[%clk 0:00:31]} 40. Qd2 {[%clk 0:00:41]}  Qd5 {[%clk 0:00:30]} 41. b4 {[%clk 0:00:41]}  Qxg2# {[%clk 0:00:30]} 0-1


[Site "https://www.chess.com"]